fUST/lending_fUST_20250824
["ID","MTS","AMOUNT","RATE_DAILY","PERIOD"]
[381074307,1755997847738,-480.0,0.00049315,120]
[381074308,1755997847747,-500.0,0.00049315,120]
[381074309,1755997847757,-500.0,0.00049315,120]
[381074310,1755997847766,-480.0,0.00049315,120]
[381074311,1755997847776,-637.34318228,0.00049315,120]
[381074312,1755997847786,-480.0,0.00049315,7]
[381074313,1755997847795,-1805.87,0.00049315,120]
[381074314,1755997847804,-541.69210891,0.00049315,120]
[381074315,1755997847814,-480.0,0.00049315,120]
[381074316,1755997847824,-1221.8,0.00049315,120]
[381074317,1755997847834,-480.0,0.00049315,120]
[381074318,1755997847844,-2165.25,0.00049315,120]
[381074319,1755997847853,-465.34265397,0.00049315,120]
[381074320,1755997847863,-480.0,0.00049315,120]
[381074321,1755997847874,-480.0,0.00049315,120]
[381074322,1755997847884,-480.0,0.00049315,120]
[381074323,1755997847894,-151.0,0.00049315,120]
[381074324,1755997847904,-151.0,0.00049315,120]
[381074325,1755997847913,-151.0,0.00049315,120]
[381074326,1755997847923,-1520.45,0.00049315,120]
[381074327,1755997847932,-480.0,0.00049315,120]
[381074328,1755997847944,-480.0,0.00049315,120]
[381074329,1755997847954,-151.0,0.00049315,120]
[381074330,1755997847964,-8274.23,0.00049315,120]
[381074331,1755997847973,-1094.15,0.00049315,120]
[381074332,1755997847983,-151.0,0.00049315,120]
[381074333,1755997847993,-151.0,0.00049315,120]
[381074334,1755997848002,-480.0,0.00049315,120]
[381074335,1755997848012,-151.0,0.00049315,120]
[381074336,1755997848021,-151.0,0.00049315,120]
[381074337,1755997848031,-3980.53,0.00049315,120]
[381074338,1755997848041,-480.0,0.00049315,120]
[381074339,1755997848051,-151.0,0.00049315,120]
[381074340,1755997848061,-151.0,0.00049315,120]
[381074341,1755997848071,-151.0,0.00049315,120]
[381074342,1755997848082,-605.63,0.00049315,120]
[381074343,1755997848092,-151.0,0.00049315,120]
[381074344,1755997848102,-1806.88,0.00049315,120]
[381074345,1755997848112,-838.83,0.00049315,120]
[381074346,1755997848122,-482.96718046,0.00049315,120]
[381074347,1755997848133,-151.0,0.00049315,120]
[381074348,1755997848142,-151.0,0.00049315,120]
[381074349,1755997848152,-151.0,0.00049315,120]
[381074350,1755997848162,-151.0,0.00049315,120]
[381074351,1755997848172,-151.0,0.00049315,120]
[381074352,1755997848181,-480.0,0.00049315,120]
[381074353,1755997848191,-932.43,0.00049315,120]
[381074354,1755997848200,-151.0,0.00049315,120]
[381074355,1755997848210,-151.0,0.00049315,120]
[381074356,1755997848219,-151.0,0.00049315,120]
[381074357,1755997848229,-151.0,0.00049315,120]
[381074358,1755997848239,-151.0,0.00049315,120]
[381074359,1755997848249,-151.0,0.00049315,120]
[381074360,1755997848259,-859.55,0.00049315,120]
[381074361,1755997848269,-151.0,0.00049315,120]
[381074362,1755997848279,-151.0,0.00049315,120]
[381074363,1755997848289,-151.0,0.00049315,120]
[381074364,1755997848299,-887.26,0.00049315,120]
[381074365,1755997848308,-250.34565888,0.00049315,120]
[381074366,1755997848318,-1627.27,0.00049315,120]
[381074367,1755997848332,-480.0,0.00049315,120]
[381074368,1755997848342,-1126.5,0.00049315,120]
[381074369,1755997848352,-480.0,0.00049315,120]
[381074370,1755997848362,-480.0,0.00049315,120]
[381074371,1755997848372,-151.0,0.00049315,120]
[381074372,1755997848382,-480.27,0.00049315,120]
[381074373,1755997848391,-151.0,0.00049315,120]
[381074374,1755997848401,-151.0,0.00049315,120]
[381074375,1755997848413,-816.38,0.00049315,120]
[381074376,1755997848423,-1392.46,0.00049315,120]
[381074377,1755997848432,-151.0,0.00049315,120]
[381074378,1755997848442,-151.0,0.00049315,120]
[381074379,1755997848452,-480.0,0.00049315,120]
[381074380,1755997848461,-151.0,0.00049315,120]
[381074381,1755997848472,-3604.69,0.00049315,120]
[381074382,1755997848482,-480.0,0.00049315,120]
[381074383,1755997848491,-151.0,0.00049315,120]
[381074384,1755997848501,-151.0,0.00049315,120]
[381074385,1755997848511,-2374.17,0.00049315,120]
[381074386,1755997848520,-151.0,0.00049315,120]
[381074387,1755997848530,-480.0,0.00049315,120]
[381074388,1755997848540,-980.9,0.00049315,60]
[381074389,1755997848550,-480.0,0.00049315,120]
[381074390,1755997848559,-480.0,0.00049315,120]
[381074391,1755997848569,-480.0,0.00049315,120]
[381074392,1755997848579,-306.05,0.00049315,120]
[381074393,1755997848588,-480.0,0.00049315,120]
[381074394,1755997848598,-466.72576641,0.00049315,120]
[381074395,1755997848608,-1106.5,0.00049315,120]
[381074396,1755997848618,-480.0,0.00049315,120]
[381074397,1755997848630,-480.0,0.00049315,120]
[381074398,1755997848640,-1408.65,0.00049315,120]
[381074399,1755997848650,-480.0,0.00049315,120]
[381074400,1755997848660,-701.27,0.00049315,120]
[381074401,1755997848670,-480.0,0.00049315,120]
[381074402,1755997848680,-1246.69,0.00049315,120]
[381074403,1755997848690,-480.0,0.00049315,120]
[381074404,1755997848700,-764.98,0.00049315,120]
[381074405,1755997848709,-480.0,0.00049315,120]
[381074406,1755997848719,-480.0,0.00049315,120]
[381074407,1755997848731,-1541.58,0.00049315,120]
[381074408,1755997848741,-480.0,0.00049315,120]
[381074409,1755997848752,-151.0,0.00049315,120]
[381074410,1755997848763,-151.0,0.00049315,120]
[381074411,1755997848773,-781.53,0.00049315,120]
[381074412,1755997848784,-151.0,0.00049315,120]
[381074413,1755997848795,-480.0,0.00049315,120]
[381074414,1755997848805,-656.86,0.00049315,120]
[381074415,1755997848815,-623.15,0.00049315,120]
[381074416,1755997848825,-496.919666,0.00049315,120]
[381074417,1755997848835,-496.919666,0.00049315,120]
[381074418,1755997848846,-496.919666,0.00049315,120]
[381074419,1755997848856,-483.23390227,0.00049315,120]
[381074420,1755997848865,-1497.56,0.00049315,120]
[381074421,1755997848875,-496.919666,0.00049315,120]
[381074422,1755997848885,-662.97,0.00049315,120]
[381074423,1755997848894,-496.919666,0.00049315,120]
[381074424,1755997848904,-496.919666,0.00049315,120]
[381074425,1755997848914,-480.0,0.00049315,120]
[381074426,1755997848924,-480.0,0.00049315,120]
[381074427,1755997848933,-496.919666,0.00049315,120]
[381074428,1755997848943,-496.919666,0.00049315,120]
[381074429,1755997848954,-496.919666,0.00049315,120]
[381074430,1755997848965,-496.919666,0.00049315,120]
[381074431,1755997848976,-496.919666,0.00049315,120]
[381074432,1755997848986,-480.0,0.00049315,120]
[381074433,1755997848996,-496.919666,0.00049315,120]
[381074434,1755997849007,-480.0,0.00049315,120]
[381074435,1755997849016,-4202.39,0.00049315,120]
[381074436,1755997849027,-480.0,0.00049315,120]
[381074437,1755997849037,-3575.91,0.00049315,120]
[381074438,1755997849048,-151.0,0.00049315,120]
[381074439,1755997849058,-151.0,0.00049315,120]
[381074440,1755997849069,-480.0,0.00049315,120]
[381074441,1755997849079,-151.0,0.00049315,30]
[381074442,1755997849089,-151.0,0.00049315,30]
[381074443,1755997849099,-151.0,0.00049315,30]
[381074444,1755997849109,-480.0,0.00049315,120]
[381074445,1755997849119,-480.0,0.00049315,120]
[381074446,1755997849130,-588.37390666,0.00049315,120]
[381074447,1755997849141,-480.0,0.00049315,120]
[381074448,1755997849153,-480.0,0.00049315,120]
[381074449,1755997849164,-480.0,0.00049315,120]
[381074450,1755997849175,-480.0,0.00049315,120]
[381074451,1755997849186,-15597.45,0.00049315,120]
[381074452,1755997849196,-11045.54,0.00049315,120]
[381074453,1755997849207,-2266.29,0.00049315,120]
[381074454,1755997849217,-481.54372366,0.00049315,120]
[381074455,1755997849231,-2050.33,0.00049315,120]
[381074456,1755997849241,-151.0,0.00049315,120]
[381074457,1755997849251,-151.805446,0.00049315,120]
[381074458,1755997849261,-480.0,0.00049315,7]
[381074459,1755997849271,-674.02,0.00049315,120]
[381074460,1755997849281,-765.4998998,0.00049315,120]
[381074461,1755997849880,-1469.4401002,0.00049315,120]
[381074462,1755997849891,-2483.68,0.00049315,120]
[381074463,1755997849900,-424.11204411,0.00049315,120]
[381074464,1755997849910,-2899.75,0.00049315,120]
[381074465,1755997849919,-13200.44,0.00049315,120]
[381074466,1755997849929,-480.0,0.00049315,120]
[381074467,1755997849938,-480.0,0.00049315,120]
[381074468,1755997849948,-480.0,0.00049315,120]
[381074469,1755997849963,-592.48963803,0.00049315,120]
[381074470,1755997849972,-820.58,0.00049315,120]
[381074471,1755997849982,-480.0,0.00049315,120]
[381074472,1755997849991,-462.64825697,0.00049315,120]
[381074473,1755997850000,-480.0,0.00049315,120]
[381074474,1755997850010,-480.0,0.00049315,120]
[381074475,1755997850021,-765.96,0.00049315,120]
[381074476,1755997850031,-4064.21,0.00049315,120]
[381074477,1755997850041,-480.0,0.00049315,120]
[381074478,1755997850051,-480.0,0.00049315,120]
[381074479,1755997850062,-1402.03,0.00049315,120]
[381074480,1755997850071,-480.0,0.00049315,120]
[381074481,1755997850081,-647.21,0.00049315,120]
[381074482,1755997850091,-480.0,0.00049315,120]
[381074483,1755997850101,-480.0,0.00049315,120]
[381074484,1755997850111,-480.0,0.00049315,120]
[381074485,1755997850120,-480.0,0.00049315,120]
[381074486,1755997850130,-480.0,0.00049315,120]
[381074487,1755997850140,-480.0,0.00049315,120]
[381074488,1755997850149,-151.0,0.00049315,120]
[381074489,1755997850159,-151.0,0.00049315,120]
[381074490,1755997850169,-151.0,0.00049315,120]
[381074491,1755997850178,-181.2,0.00049315,120]
[381074492,1755997850187,-2436.98,0.00049315,120]
[381074493,1755997850197,-480.0,0.00049315,120]
[381074494,1755997850206,-724.75,0.00049315,120]
[381074495,1755997850215,-427.69668547,0.00049315,120]
[381074496,1755997850226,-480.0,0.00049315,120]
[381074497,1755997850235,-9316.74,0.00049315,120]
[381074498,1755997850245,-151.025222,0.00049315,120]
[381074499,1755997850254,-480.0,0.00049315,120]
[381074500,1755997850264,-151.025222,0.00049315,120]
[381074501,1755997850274,-151.025222,0.00049315,120]
[381074502,1755997850283,-480.0,0.00049315,120]
[381074503,1755997850293,-151.025222,0.00049315,120]
[381074504,1755997850302,-584.81,0.00049315,120]
[381074505,1755997850312,-151.025222,0.00049315,120]
[381074506,1755997850323,-151.025222,0.00049315,120]
[381074507,1755997850340,-151.025222,0.00049315,120]
[381074508,1755997850349,-151.025222,0.00049315,120]
[381074509,1755997850359,-151.025222,0.00049315,120]
[381074510,1755997850370,-151.025222,0.00049315,120]
[381074511,1755997850379,-151.025222,0.00049315,120]
[381074512,1755997850388,-151.025222,0.00049315,120]
[381074513,1755997850398,-151.025222,0.00049315,120]
[381074514,1755997850409,-480.0,0.00049315,120]
[381074515,1755997850419,-151.025222,0.00049315,120]
[381074516,1755997850429,-3941.17,0.00049315,120]
[381074517,1755997850438,-151.025222,0.00049315,120]
[381074518,1755997850447,-151.025222,0.00049315,120]
[381074519,1755997850457,-480.0,0.00049315,120]
[381074520,1755997850466,-480.0,0.00049315,120]
[381074521,1755997850476,-480.0,0.00049315,120]
[381074522,1755997850486,-480.0,0.00049315,120]
[381074523,1755997850496,-151.0,0.00049315,120]
[381074524,1755997850505,-151.0,0.00049315,120]
[381074525,1755997850515,-151.0,0.00049315,120]
[381074526,1755997850526,-229.549528,0.00049315,120]
[381074527,1755997850535,-480.0,0.00049315,120]
[381074528,1755997850544,-2321.73,0.00049315,120]
[381074529,1755997850554,-5721.05,0.00049315,120]
[381074530,1755997850563,-480.0,0.00049315,120]
[381074531,1755997850572,-480.0,0.00049315,120]
[381074532,1755997850581,-480.0,0.00049315,120]
[381074533,1755997850591,-480.0,0.00049315,120]
[381074534,1755997850600,-1122.35,0.00049315,30]
[381074535,1755997850610,-480.0,0.00049315,120]
[381074536,1755997850620,-1061.9,0.00049315,120]
[381074537,1755997850630,-1773.63,0.00049315,120]
[381074538,1755997850641,-480.0,0.00049315,120]
[381074539,1755997850651,-480.0,0.00049315,120]
[381074540,1755997850662,-4367.68,0.00049315,3]
[381074541,1755997850673,-480.0,0.00049315,120]
[381074542,1755997850683,-480.0,0.00049315,120]
[381074543,1755997850694,-480.0,0.00049315,120]
[381074544,1755997850706,-2314.17,0.00049315,120]
[381074545,1755997850716,-1049.28,0.00049315,120]
[381074546,1755997850725,-4448.27,0.00049315,120]
[381074547,1755997850735,-480.0,0.00049315,2]
[381074548,1755997850744,-480.0,0.00049315,120]
[381074549,1755997850754,-480.0,0.00049315,120]
[381074550,1755997850764,-952.92,0.00049315,120]
[381074551,1755997850773,-463.95074091,0.00049315,120]
[381074552,1755997850783,-480.0,0.00049315,120]
[381074553,1755997850793,-480.0,0.00049315,120]
[381074554,1755997850802,-790.53,0.00049315,120]
[381074555,1755997850811,-692.14,0.00049315,120]
[381074556,1755997850821,-480.0,0.00049315,120]
[381074557,1755997850830,-151.0,0.00049315,120]
[381074558,1755997850839,-480.0,0.00049315,120]
[381074559,1755997850848,-151.0,0.00049315,120]
[381074560,1755997850858,-1416.15,0.00049315,120]
[381074561,1755997850868,-480.0,0.00049315,20]
[381074562,1755997850877,-8305.07,0.00049315,120]
[381074563,1755997850886,-1482.72,0.00049315,120]
[381074564,1755997850896,-873.79,0.00049315,120]
[381074565,1755997850905,-480.0,0.00049315,120]
[381074566,1755997850914,-539.68,0.00049315,120]
[381074567,1755997850924,-151.0,0.00049315,120]
[381074568,1755997850933,-151.0,0.00049315,120]
[381074569,1755997850943,-151.0,0.00049315,120]
[381074570,1755997850953,-151.0,0.00049315,120]
[381074571,1755997850962,-480.0,0.00049315,120]
[381074572,1755997850972,-461.86164056,0.00049315,120]
[381074573,1755997850981,-480.0,0.00049315,120]
[381074574,1755997850991,-6952.56,0.00049315,120]
[381074575,1755997851001,-480.0,0.00049315,120]
[381074576,1755997851011,-151.0,0.00049315,120]
[381074577,1755997851020,-1513.53339754,0.00049315,21]
[381074578,1755997851035,-1200.20660246,0.00049315,21]
[381074579,1755997851044,-151.0,0.00049315,120]
[381074580,1755997851053,-151.0,0.00049315,120]
[381074581,1755997851062,-200.465068,0.00049315,120]
[381074582,1755997851072,-480.0,0.00049315,120]
[381074583,1755997851082,-480.0,0.00049315,120]
[381074584,1755997851092,-2956.29368935,0.00049315,120]
[381074585,1755997851114,-2133.76544706,0.00049315,120]
[381074586,1755997852077,-199.0,0.00028276,120]
[381074587,1755997852086,-172.12484557,0.00049315,120]
[381074588,1755997852147,-102.71451949,0.00028233,10]
[381074589,1755997852563,-96.28548051,0.00028233,10]
[381074590,1755997852572,-194.22180214,0.000484,2]
[381074591,1755997852582,-499.98807627,0.00049315,120]
[381074592,1755997868604,241.2256673,0.00024216,2]
[381074593,1755997868705,241.2256673,0.0002249,2]
[381074594,1755997868969,241.2256673,0.00025943,4]
[381074595,1755998035164,385.96106768,0.0002249,2]
[381074596,1755998035218,385.96106768,0.00024216,2]
[381074598,1755998201434,291.60198184,0.0002249,2]
[381074599,1755998201465,291.60198184,0.00024216,2]
[381074600,1755998369882,249.23251324,0.0002249,2]
[381074601,1755998370189,249.23251324,0.00024216,2]
[381074602,1755998534419,365.54101944,0.0002249,2]
[381074603,1755998534485,365.54101944,0.00020763,2]
[381074604,1755998534523,365.54101944,0.00024216,2]
[381074610,1755998699937,274.15576479,0.00020763,2]
[381074613,1755998871834,6672.58882535,0.00018,2]
[381074614,1755998913787,755.27,0.0002,2]
[381074615,1755998915723,4267.12513972,0.00017,2]
[381074616,1755998917704,2408.7952045,0.00025,2]
[381074617,1755998924998,301.999999,0.00025,5]
[381074618,1755998926208,120.25120333,0.0002,2]
[381074619,1755998926230,20140.74879667,0.0002,2]
[381074620,1755998927340,9859.25120333,0.00019063,2]
[381074621,1755998927361,17505.63898619,0.00019063,2]
[381074622,1755999031072,228.32362372,0.0002249,2]
[381074623,1755999031378,228.32362372,0.00024216,2]
[381074624,1755999031486,228.32362372,0.00025943,4]
[381074680,1755999032795,-5000.0,0.0002663,2]
[381074682,1755999032805,-1200.0,0.00026848,2]
[381074684,1755999032814,-300.0,0.00026898,2]
[381074687,1755999032824,-300.0,0.00026898,2]
[381074689,1755999032834,-300.0,0.00026898,2]
[381074692,1755999032843,-300.0,0.00026898,2]
[381074695,1755999032853,-300.0,0.00026898,2]
[381074698,1755999032862,-281.0,0.00026899,2]
[381074700,1755999032872,-7835.28,0.000269,2]
[381074702,1755999032882,-5834.92,0.000269,2]
[381074704,1755999032891,-705.32,0.000269,2]
[381074706,1755999032901,-285.74900478,0.000269,2]
[381074708,1755999032910,-999.4212101,0.00027123,3]
[381074710,1755999032919,-397.4250688,0.00027248,2]
[381074712,1755999032929,-228.32362372,0.00027669,8]
[381074714,1755999032938,-844.50316758,0.00028,3]
[381074716,1755999032948,-199.0,0.00028076,120]
[381074718,1755999032957,-199.0,0.00028176,120]
[381074719,1755999032966,-199.0,0.00028176,120]
[381074720,1755999032975,-168.64630533,0.00028355,2]
[381074721,1755999032985,-1023.45022105,0.000284,2]
[381074722,1755999032993,-320.0369294,0.000284,2]
[381074723,1755999033002,-167.97,0.00028446,3]
[381074724,1755999033011,-503.94,0.00028446,3]
[381074725,1755999033020,-902.51543221,0.00028446,2]
[381074726,1755999033029,-477.23188784,0.00028455,2]
[381074727,1755999033038,-251.20721443,0.00028455,2]
[381074728,1755999033048,-188.26341749,0.00028455,2]
[381074729,1755999033057,-263.48,0.00028455,2]
[381074730,1755999033067,-600.4494604,0.00028455,2]
[381074731,1755999033077,-185.97527668,0.00028455,2]
[381074732,1755999033087,-500.0,0.00028455,2]
[381074733,1755999033097,-382.279031,0.00028455,2]
[381074734,1755999033112,-500.0,0.00028455,2]
[381074735,1755999033122,-500.0,0.00028455,2]
[381074736,1755999033132,-500.0,0.00028455,2]
[381074737,1755999033142,-500.0,0.00028455,2]
[381074738,1755999033153,-208.06942241,0.00028455,2]
[381074739,1755999033163,-34693.86363644,0.00028456,2]
[381074816,1755999047860,1854.0,0.00029508,30]
[381074817,1755999057585,992.9,0.0002739,120]
[381074819,1755999197862,362.0490512,0.0002249,2]
[381074820,1755999197975,362.0490512,0.00024216,2]
[381074821,1755999229205,171432.16370301,0.00029505,120]
[381074822,1755999236420,5000.0,0.0002501,2]
[381074823,1755999251690,5000.0,0.0002501,2]
[381074824,1755999267314,1770.26291141,0.0002501,2]
[381074825,1755999267339,3229.73708859,0.0002501,2]
[381074826,1755999282741,5000.0,0.0002501,2]
[381074827,1755999297911,2477.08207157,0.0002501,2]
[381074828,1755999357291,184.88461996,0.0002501,2]
[381074829,1755999362464,532.49563146,0.000199,2]
[381074830,1755999362974,532.49563128,0.00021627,2]
[381074831,1755999372783,5000.0,0.0002501,2]
[381074833,1755999456935,168514.45860391,0.00029505,120]
[381074835,1755999529307,548.93413526,0.000199,2]
[381074836,1755999529402,548.9341351,0.00021627,2]
[381074837,1755999529905,548.9341351,0.00023353,2]
[381074838,1755999576799,152.0,0.00029504,60]
[381074839,1755999592125,184.0639002,0.0002498,2]
[381074840,1755999695880,546.55602541,0.00021627,2]
[381074841,1755999696349,546.55602569,0.000199,2]
[381074842,1755999696491,546.55602541,0.00023353,2]
[381074843,1755999726166,6201.59905931,0.00024965,2]
[381074844,1755999730438,1468.25981421,0.0002501,2]
[381074845,1755999746530,1902.91170145,0.0002501,2]
[381074846,1755999746554,1628.82848434,0.0002501,2]
[381074848,1755999781421,164.294687,0.00013699,2]
[381074850,1755999864209,758.17880564,0.000199,2]
[381074851,1755999864824,758.17880557,0.00023353,2]
[381074852,1755999865181,758.17880557,0.00021627,2]
[381074854,1756000009093,-160.0,0.00025065,2]
[381074855,1756000009114,-1.86919403,0.00025065,2]
[381074856,1756000032971,682.3609251,0.000199,2]
[381074857,1756000033065,-182.19470616,0.00025065,2]
[381074858,1756000033084,-2001.44010356,0.000251,2]
[381074859,1756000033103,-183.256805,0.00025165,2]
[381074860,1756000033122,-302.40565,0.00025778,2]
[381074861,1756000033143,-194.29535566,0.00026044,2]
[381074862,1756000033163,-236.9512649,0.00026475,2]
[381074863,1756000033183,-209.82302986,0.00026799,2]
[381074864,1756000033204,-1200.0,0.00026804,2]
[381074865,1756000033223,-300.0,0.00026804,2]
[381074866,1756000033243,-9913.83581828,0.00026805,2]
[381074867,1756000033640,682.36092501,0.00021627,2]
[381074868,1756000081475,215.132776,0.000295,30]
[381074885,1756000163081,-682.36092501,0.0002508,2]
[381074886,1756000168967,612.52,0.0002501,2]
[381074893,1756000218185,680.97800641,0.000199,2]
[381074894,1756000218382,680.97800629,0.00023353,2]
[381074895,1756000218548,680.97800629,0.0002508,2]
[381074896,1756000219198,680.97800629,0.00021627,2]
[381074922,1756000231996,-848.6754484,0.00026507,2]
[381074927,1756000232050,-139.7490467,0.00026507,2]
[381074928,1756000232060,-214.36602072,0.00026705,88]
[381074929,1756000232069,-680.97800629,0.00026806,6]
[381074930,1756000232079,-150.0,0.00027397,2]
[381074931,1756000232088,-150.0,0.00027397,2]
[381074932,1756000232097,-168.0,0.00027932,2]
[381074933,1756000232107,-1200.0,0.00027974,2]
[381074934,1756000232117,-300.0,0.00027975,2]
[381074935,1756000232126,-300.0,0.00027975,2]
[381074936,1756000232135,-15281.79562818,0.00027976,2]
[381074937,1756000232144,-199.0,0.00027976,120]
[381074938,1756000232153,-714.64133657,0.000283,2]
[381074939,1756000232162,-372.11,0.00028346,3]
[381074940,1756000232171,-4925.6686045,0.00028346,2]
[381074941,1756000232180,-421.95526704,0.00028346,2]
[381074942,1756000232190,-335.68414616,0.00028355,2]
[381074943,1756000232199,-317.84666076,0.00028355,2]
[381074944,1756000232208,-26843.56941671,0.00028356,2]
[381074945,1756000232220,-33518.14317461,0.00028356,2]
[381074946,1756000232231,-11865.06691912,0.00028356,2]
[381074954,1756000236785,1303.15285826,0.00023005,2]
[381074959,1756000237850,-199.0,0.00027876,120]
[381074961,1756000237860,-531.9799992,0.00028356,2]
[381074963,1756000237872,-791.15330908,0.00028356,2]
[381074964,1756000237891,-1834.44811833,0.00028356,2]
[381074965,1756000237930,-760.6370066,0.00028356,2]
[381074966,1756000237941,-650.64,0.00028356,2]
[381074967,1756000237975,-783.8139614,0.00028356,2]
[381074968,1756000238112,-9111.19773739,0.00028356,2]
[381074969,1756000238124,-485.47782603,0.00028356,2]
[381074970,1756000238135,-12471.44796749,0.00028356,2]
[381074990,1756000242920,-199.0,0.00027876,120]
[381074991,1756000242930,-396.56362836,0.00028356,2]
[381074998,1756000245915,-3234.92546189,0.00028356,2]
[381074999,1756000245970,-2113.59864182,0.00028356,2]
[381075002,1756000337122,4314.51803312,0.0002501,2]
[381075003,1756000387393,629.20486573,0.000199,2]
[381075004,1756000387929,629.20486553,0.00023353,2]
[381075005,1756000388167,629.20486553,0.00021627,2]
[381075008,1756000560355,567.00926274,0.000199,2]
[381075009,1756000560986,567.00926268,0.00023353,2]
[381075010,1756000561225,567.00926268,0.00021627,2]
[381075013,1756000707259,161.602158,0.00013699,2]
[381075014,1756000729450,592.16627699,0.000199,2]
[381075015,1756000730403,592.16627676,0.00023353,2]
[381075016,1756000730458,592.16627676,0.00021627,2]
[381075018,1756000892647,177.5520083,0.0002498,2]
[381075019,1756000899951,532.9496492,0.000199,2]
[381075020,1756000900204,532.94964908,0.00023353,2]
[381075021,1756000900663,532.94964908,0.00021627,2]
[381075022,1756001029581,162.0,0.00025,7]
[381075024,1756001069448,479.65468423,0.000199,2]
[381075025,1756001069715,479.65468417,0.00023353,2]
[381075026,1756001070020,479.65468417,0.00021627,2]
[381075038,1756001212121,-500.0,0.0002508,2]
[381075039,1756001212145,-500.0,0.0002508,2]
[381075040,1756001212165,-500.0,0.0002508,2]
[381075041,1756001212189,-479.65468417,0.0002508,2]
[381075042,1756001212210,-755.86590434,0.00025204,2]
[381075043,1756001256272,416.46946595,0.000199,2]
[381075044,1756001256391,416.46946588,0.00023353,2]
[381075048,1756001427039,388.65962759,0.000199,2]
[381075049,1756001427486,388.6596275,0.00021627,2]
[381075050,1756001427898,388.6596275,0.00023353,2]
[381075176,1756001438088,-388.6596275,0.0002508,2]
[381075177,1756001438098,-1200.0,0.00025645,2]
[381075178,1756001438110,-2062.5910564,0.00025646,2]
[381075179,1756001438119,-300.0,0.00026218,2]
[381075180,1756001438128,-1200.0,0.00026218,2]
[381075181,1756001438137,-300.0,0.00026218,2]
[381075182,1756001438146,-8738.7634035,0.00026219,2]
[381075183,1756001438155,-388.6596275,0.00026806,6]
[381075184,1756001438165,-1513.6998437,0.00026963,2]
[381075185,1756001438174,-417.15472785,0.00027,7]
[381075186,1756001438183,-193.91789756,0.0002799,2]
[381075187,1756001438194,-23790.95075717,0.0002799,2]
[381075188,1756001438204,-2163.23839289,0.00028237,2]
[381075190,1756001438215,-207.30709241,0.00028239,2]
[381075191,1756001438226,-732.44,0.00028246,10]
[381075193,1756001438237,-3201.68459296,0.00028246,2]
[381075194,1756001438247,-210.97763358,0.00028246,2]
[381075195,1756001438257,-150.51017999,0.00028255,2]
[381075196,1756001438269,-84.46872233,0.00028255,2]
[381075197,1756001438278,-3053.74944638,0.00028256,2]
[381075198,1756001438308,-287.31959747,0.00028256,2]
[381075199,1756001438321,-189.96600701,0.00028256,2]
[381075200,1756001438330,-274.04178124,0.00028256,2]
[381075213,1756001440109,-10409.245285,0.00028256,2]
[381075248,1756001443310,-303.94673206,0.00028256,2]
[381075251,1756001443334,-3768.31117976,0.00028256,2]
[381075285,1756001446340,-316.5354621,0.00028256,2]
[381075287,1756001446352,-3562.04631922,0.00028256,2]
[381075289,1756001446363,-12304.56558837,0.00028256,2]
[381075292,1756001595295,374.22606404,0.000199,2]
[381075293,1756001596021,374.2260639,0.00023353,2]
[381075294,1756001765923,8601.62220466,0.0002,7]
[381075295,1756001765946,24443.37779534,0.0002,7]